[Event "*** Titled Tuesday Blitz"]
[Site "Chess.com"]
[Date "2018.08.07"]
[Round "5"]
[White "Quiet_Desperation"]
[Black "MarshKnight"]
[Result "1/2-1/2"]
[WhiteElo "1899"]
[BlackElo "2100"]
[TimeControl "180+2"]
[EndTime "14:06:15 PDT"]
[Termination "Game drawn by agreement"]

1. e4 {[%clk 0:03:01.9]} 1... e6 {[%clk 0:02:59.3]} 2. d4 {[%clk 0:03:02.6]}
2... d5 {[%clk 0:03:00.7]} 3. Nc3 {[%clk 0:03:04.1]} 3... Nc6 {[%clk 0:03:00.5]}
4. e5 {[%clk 0:03:02.3]} 4... f6 {[%clk 0:03:00.8]} 5. Nf3 {[%clk 0:03:02.8]}
5... fxe5 {[%clk 0:02:56.2]} 6. dxe5 {[%clk 0:03:04]} 6... g6 {[%clk 0:02:48]}
7. Bd3 {[%clk 0:03:01]} 7... Bg7 {[%clk 0:02:48.8]} 8. Qe2 {[%clk 0:03:01.3]}
8... Nh6 {[%clk 0:02:48.2]} 9. Bg5 {[%clk 0:02:56.1]} 9... Qd7 {[%clk
0:02:46.4]} 10. Qd2 {[%clk 0:02:48.3]} 10... Nf7 {[%clk 0:02:46.2]} 11. Bf4
{[%clk 0:02:46.4]} 11... Nfxe5 {[%clk 0:02:46.3]} 12. Nxe5 {[%clk 0:02:47.7]}
12... Nxe5 {[%clk 0:02:46.1]} 13. O-O-O {[%clk 0:02:38.6]} 13... Nxd3+ {[%clk
0:02:43.5]} 14. Qxd3 {[%clk 0:02:39.8]} 14... O-O {[%clk 0:02:44.1]} 15. Bg5
{[%clk 0:02:37.4]} 15... a5 {[%clk 0:02:09.5]} 16. h4 {[%clk 0:02:36.2]} 16...
b6 {[%clk 0:02:01.9]} 17. h5 {[%clk 0:02:35.2]} 17... Ba6 {[%clk 0:02:03.4]} 18.
Qd2 {[%clk 0:02:33.5]} 18... Qf7 {[%clk 0:01:57.2]} 19. hxg6 {[%clk 0:02:23.5]}
19... Qxg6 {[%clk 0:01:57]} 20. Rde1 {[%clk 0:02:07.4]} 20... Rf5 {[%clk
0:01:52.7]} 21. Bf4 {[%clk 0:01:58.8]} 21... Raf8 {[%clk 0:01:43.3]} 22. Bxc7
{[%clk 0:01:57.8]} 22... Rxf2 {[%clk 0:01:44.2]} 23. Qd1 {[%clk 0:01:52.2]}
23... Rc8 {[%clk 0:00:58.4]} 24. Bxb6 {[%clk 0:01:48.8]} 24... Bxc3 {[%clk
0:00:57.1]} 25. Bxf2 {[%clk 0:01:43.5]} 25... Bxe1 {[%clk 0:00:54.4]} 26. Rxe1
{[%clk 0:01:40.6]} 26... Bd3 {[%clk 0:00:51.1]} 27. c3 {[%clk 0:01:41.2]} 27...
Be4 {[%clk 0:00:46.6]} 28. Re3 {[%clk 0:01:37.2]} 28... Kh8 {[%clk 0:00:44]} 29.
Rg3 {[%clk 0:01:34.7]} 29... Qf5 {[%clk 0:00:43.8]} 30. Qd2 {[%clk 0:01:23.3]}
30... Rf8 {[%clk 0:00:40.2]} 31. Be3 {[%clk 0:00:53.6]} 31... e5 {[%clk
0:00:33.4]} 32. b3 {[%clk 0:00:48.6]} 32... Qf1+ {[%clk 0:00:31.1]} 33. Qd1
{[%clk 0:00:44.8]} 33... Qxd1+ {[%clk 0:00:18.3]} 34. Kxd1 {[%clk 0:00:45.8]}
34... Rf1+ {[%clk 0:00:19.4]} 35. Ke2 {[%clk 0:00:36.6]} 35... Ra1 {[%clk
0:00:20.7]} 36. Bg5 {[%clk 0:00:34.4]} 36... Rxa2+ {[%clk 0:00:22.1]} 37. Ke3
{[%clk 0:00:32.6]} 37... Bg6 {[%clk 0:00:23.6]} 38. Bf6+ {[%clk 0:00:32.9]}
38... Kg8 {[%clk 0:00:24.2]} 39. Bxe5 {[%clk 0:00:34.8]} 39... Rb2 {[%clk
0:00:23.3]} 40. Kd4 {[%clk 0:00:32.6]} 40... Rxb3 {[%clk 0:00:21.2]} 41. Kxd5
{[%clk 0:00:31.4]} 41... a4 {[%clk 0:00:22.8]} 42. Kc4 {[%clk 0:00:27.5]} 42...
Rb7 {[%clk 0:00:21.5]} 43. Kd5 {[%clk 0:00:21.6]} 43... a3 {[%clk 0:00:22.5]}
44. c4 {[%clk 0:00:22.7]} 44... a2 {[%clk 0:00:20.9]} 45. Ra3 {[%clk 0:00:23.2]}
45... Rd7+ {[%clk 0:00:18.9]} 46. Bd6 {[%clk 0:00:21.8]} 46... Bf7+ {[%clk
0:00:18.8]} 47. Kc5 {[%clk 0:00:21.3]} 47... Bxc4 {[%clk 0:00:18.5]} 48. Kxc4
{[%clk 0:00:22.5]} 48... Rxd6 {[%clk 0:00:20.1]} 49. Rxa2 {[%clk 0:00:24]} 49...
Rg6 {[%clk 0:00:21.3]} 50. Kd4 {[%clk 0:00:24.5]} 50... Re6 {[%clk 0:00:22.5]}
51. Rf2 {[%clk 0:00:21.4]} 51... Kg7 {[%clk 0:00:23.9]} 52. Kd3 {[%clk
0:00:22.6]} 52... Kg6 {[%clk 0:00:25.4]} 53. Kd4 {[%clk 0:00:24]} 53... Kg5
{[%clk 0:00:26.9]} 54. Kd5 {[%clk 0:00:25.5]} 54... Re8 {[%clk 0:00:26.9]} 55.
Kd4 {[%clk 0:00:26.2]} 55... Kg4 {[%clk 0:00:27.9]} 56. Rf7 {[%clk 0:00:25.8]}
56... h5 {[%clk 0:00:29]} 57. Rg7+ {[%clk 0:00:26.4]} 57... Kf4 {[%clk
0:00:28.5]} 58. g3+ {[%clk 0:00:25.6]} 58... Kf3 {[%clk 0:00:28.6]} 59. Rg5
{[%clk 0:00:23.7]} 59... Rh8 {[%clk 0:00:18.1]} 60. Ke5 {[%clk 0:00:22.8]} 60...
Kg2 {[%clk 0:00:15.6]} 61. Kf5 {[%clk 0:00:22.3]} 61... Kf3 {[%clk 0:00:15]} 62.
Ke6 {[%clk 0:00:22.9]} 62... h4 {[%clk 0:00:15.1]} 63. gxh4 {[%clk 0:00:23.5]}
63... Rxh4 {[%clk 0:00:16.7]} 64. Rf5+ {[%clk 0:00:23.4]} 64... Ke4 {[%clk
0:00:17.3]} 65. Ra5 {[%clk 0:00:23.3]} 65... Rh6+ {[%clk 0:00:17.7]} 66. Kf7
{[%clk 0:00:24.2]} 66... Rb6 {[%clk 0:00:17.5]} 1/2-1/2

[Event "*** Titled Tuesday Blitz"]
[Site "Chess.com"]
[Date "2018.08.07"]
[Round "5"]
[White "morphy1984"]
[Black "David_Klein"]
[Result "0-1"]
[WhiteElo "2507"]
[BlackElo "2522"]
[TimeControl "180+2"]
[EndTime "14:06:25 PDT"]
[Termination "David_Klein won on time"]

1. e4 {[%clk 0:03:01.9]} 1... g6 {[%clk 0:03:00.9]} 2. d4 {[%clk 0:03:02.3]}
2... Bg7 {[%clk 0:03:02]} 3. Nf3 {[%clk 0:03:03.4]} 3... d6 {[%clk 0:03:03.2]}
4. Bc4 {[%clk 0:03:03.5]} 4... c6 {[%clk 0:03:04.1]} 5. O-O {[%clk 0:02:50.4]}
5... b5 {[%clk 0:02:59.2]} 6. Bb3 {[%clk 0:02:50.2]} 6... Nf6 {[%clk 0:02:57.2]}
7. Qe2 {[%clk 0:02:45.9]} 7... O-O {[%clk 0:02:53.9]} 8. h3 {[%clk 0:02:35.5]}
8... a5 {[%clk 0:02:17.7]} 9. c3 {[%clk 0:02:26.1]} 9... b4 {[%clk 0:02:12]} 10.
Re1 {[%clk 0:02:18.6]} 10... Ba6 {[%clk 0:02:06]} 11. Qd1 {[%clk 0:02:03.6]}
11... e6 {[%clk 0:01:47]} 12. Bg5 {[%clk 0:01:59.8]} 12... Qc7 {[%clk
0:01:44.8]} 13. Nbd2 {[%clk 0:01:55.9]} 13... Nbd7 {[%clk 0:01:35]} 14. Nf1
{[%clk 0:01:30.3]} 14... d5 {[%clk 0:01:33.8]} 15. e5 {[%clk 0:01:28.9]} 15...
Ne4 {[%clk 0:01:34.8]} 16. Bd2 {[%clk 0:01:18.5]} 16... c5 {[%clk 0:01:32.7]}
17. Bc2 {[%clk 0:01:10.4]} 17... Nxd2 {[%clk 0:01:32.6]} 18. Qxd2 {[%clk
0:01:08.9]} 18... Rfc8 {[%clk 0:01:28.3]} 19. Rac1 {[%clk 0:01:09.4]} 19... Nb6
{[%clk 0:01:21.7]} 20. Bd3 {[%clk 0:00:53.8]} 20... Bxd3 {[%clk 0:01:06.1]} 21.
Qxd3 {[%clk 0:00:54.6]} 21... Nc4 {[%clk 0:01:07.7]} 22. Qe2 {[%clk 0:00:49.1]}
22... bxc3 {[%clk 0:00:35.9]} 23. bxc3 {[%clk 0:00:45.4]} 23... Rab8 {[%clk
0:00:36.2]} 24. Rb1 {[%clk 0:00:46]} 24... Na3 {[%clk 0:00:34.5]} 25. Rb3 {[%clk
0:00:42]} 25... Nc4 {[%clk 0:00:28.7]} 26. Ne3 {[%clk 0:00:34.8]} 26... Nxe3
{[%clk 0:00:26]} 27. Qxe3 {[%clk 0:00:30.1]} 27... c4 {[%clk 0:00:25]} 28. Rbb1
{[%clk 0:00:27.6]} 28... Rb6 {[%clk 0:00:22.7]} 29. Nd2 {[%clk 0:00:27.4]} 29...
Rcb8 {[%clk 0:00:21.9]} 30. Rxb6 {[%clk 0:00:25.7]} 30... Rxb6 {[%clk
0:00:23.8]} 31. Rb1 {[%clk 0:00:26.1]} 31... Qb7 {[%clk 0:00:24.9]} 32. Qe1
{[%clk 0:00:25.5]} 32... Bh6 {[%clk 0:00:14]} 33. Rxb6 {[%clk 0:00:22.8]} 33...
Qxb6 {[%clk 0:00:15.9]} 34. Qb1 {[%clk 0:00:20.9]} 34... Qc6 {[%clk 0:00:16.9]}
35. Qc2 {[%clk 0:00:15.7]} 35... Qb5 {[%clk 0:00:17]} 36. g3 {[%clk 0:00:12.6]}
36... Bxd2 {[%clk 0:00:15.4]} 37. Qxd2 {[%clk 0:00:13.1]} 37... a4 {[%clk
0:00:16.3]} 38. Kg2 {[%clk 0:00:12.2]} 38... Qb1 {[%clk 0:00:13.5]} 39. h4
{[%clk 0:00:11.9]} 39... Qe4+ {[%clk 0:00:12]} 40. f3 {[%clk 0:00:12.5]} 40...
Qb1 {[%clk 0:00:12.7]} 41. h5 {[%clk 0:00:12.7]} 41... a3 {[%clk 0:00:11]} 42.
hxg6 {[%clk 0:00:07.7]} 42... hxg6 {[%clk 0:00:10.5]} 43. Kf2 {[%clk 0:00:09.2]}
43... Qb2 {[%clk 0:00:04]} 44. Ke3 {[%clk 0:00:09.9]} 44... Kg7 {[%clk
0:00:05.4]} 45. Ke2 {[%clk 0:00:06.5]} 45... Qb1 {[%clk 0:00:05.9]} 46. Kf2
{[%clk 0:00:06.1]} 46... Qh1 {[%clk 0:00:06.5]} 47. g4 {[%clk 0:00:04.6]} 47...
Qh2+ {[%clk 0:00:07.4]} 48. Ke3 {[%clk 0:00:05.4]} 48... Qg1+ {[%clk 0:00:08.6]}
49. Ke2 {[%clk 0:00:04.9]} 49... Qb1 {[%clk 0:00:09.6]} 50. Ke3 {[%clk
0:00:05.5]} 50... Qb2 {[%clk 0:00:10.2]} 51. Ke2 {[%clk 0:00:04.9]} 51... Kf8
{[%clk 0:00:10.9]} 52. Kd1 {[%clk 0:00:03.8]} 52... Qb1+ {[%clk 0:00:10.5]} 53.
Ke2 {[%clk 0:00:03.8]} 53... Ke8 {[%clk 0:00:12]} 54. f4 {[%clk 0:00:03.1]}
54... Qe4+ {[%clk 0:00:12.5]} 55. Kf2 {[%clk 0:00:03.4]} 55... Qb1 {[%clk
0:00:13.5]} 56. Ke3 {[%clk 0:00:02.6]} 56... Qg1+ {[%clk 0:00:13.6]} 0-1

[Event "*** Titled Tuesday Blitz"]
[Site "Chess.com"]
[Date "2018.08.07"]
[Round "5"]
[White "thegreendog"]
[Black "AdrianaNikolova"]
[Result "1-0"]
[WhiteElo "2332"]
[BlackElo "2399"]
[TimeControl "180+2"]
[EndTime "14:06:32 PDT"]
[Termination "thegreendog won by resignation"]

1. e4 {[%clk 0:03:01.9]} 1... d5 {[%clk 0:02:55]} 2. exd5 {[%clk 0:03:02.2]}
2... Qxd5 {[%clk 0:02:56.9]} 3. Nc3 {[%clk 0:03:03.6]} 3... Qd8 {[%clk
0:02:57.5]} 4. Bc4 {[%clk 0:03:03.6]} 4... Nf6 {[%clk 0:02:53.5]} 5. Nf3 {[%clk
0:03:03.4]} 5... a6 {[%clk 0:02:54.9]} 6. Ne5 {[%clk 0:02:51.9]} 6... e6 {[%clk
0:02:55.5]} 7. d4 {[%clk 0:02:49.1]} 7... Nbd7 {[%clk 0:02:56.1]} 8. Qf3 {[%clk
0:02:45.7]} 8... Nxe5 {[%clk 0:02:51.5]} 9. dxe5 {[%clk 0:02:46.2]} 9... Nd7
{[%clk 0:02:53]} 10. Bf4 {[%clk 0:02:43.9]} 10... Bb4 {[%clk 0:02:46.3]} 11.
O-O-O {[%clk 0:02:39.8]} 11... Bxc3 {[%clk 0:02:45.8]} 12. Qxc3 {[%clk 0:02:40]}
12... b5 {[%clk 0:02:33.3]} 13. Qf3 {[%clk 0:02:38.8]} 13... Ra7 {[%clk
0:02:21.4]} 14. Bd3 {[%clk 0:02:29]} 14... Bb7 {[%clk 0:02:21.3]} 15. Qg3 {[%clk
0:02:24.9]} 15... g6 {[%clk 0:02:13.6]} 16. h4 {[%clk 0:02:18.9]} 16... c5
{[%clk 0:02:12.3]} 17. h5 {[%clk 0:02:11.6]} 17... Rg8 {[%clk 0:02:06]} 18. hxg6
{[%clk 0:02:10.3]} 18... hxg6 {[%clk 0:02:07.9]} 19. Rh7 {[%clk 0:01:38.5]}
19... Bd5 {[%clk 0:02:03.9]} 20. Bg5 {[%clk 0:01:31.5]} 20... Qa5 {[%clk
0:02:04.1]} 21. Qf4 {[%clk 0:01:29.3]} 21... Nf8 {[%clk 0:01:59.4]} 22. Rh4
{[%clk 0:00:56.7]} 22... Qxa2 {[%clk 0:01:59.1]} 23. Qf6 {[%clk 0:00:57.1]}
23... Rd7 {[%clk 0:01:58.3]} 24. Rh8 {[%clk 0:00:37.5]} 24... Rxh8 {[%clk
0:01:50.7]} 25. Qxh8 {[%clk 0:00:39.4]} 25... Qa1+ {[%clk 0:01:12]} 26. Kd2
{[%clk 0:00:39]} 26... Qxb2 {[%clk 0:01:13.9]} 27. Bh6 {[%clk 0:00:37.4]} 27...
Qb4+ {[%clk 0:01:12.6]} 28. c3 {[%clk 0:00:23.6]} 28... Qb2+ {[%clk 0:01:12.5]}
29. Ke3 {[%clk 0:00:22]} 29... Kd8 {[%clk 0:00:59.3]} 30. Qxf8+ {[%clk
0:00:21.9]} 30... Kc7 {[%clk 0:01:00.2]} 31. Qxc5+ {[%clk 0:00:22.9]} 31... Bc6
{[%clk 0:01:01.5]} 32. Bf8 {[%clk 0:00:20.9]} 32... Qb3 {[%clk 0:00:55.4]} 33.
Bd6+ {[%clk 0:00:19.5]} 33... Kb7 {[%clk 0:00:56.6]} 34. f3 {[%clk 0:00:16.8]}
34... f5 {[%clk 0:00:50.7]} 35. Be2 {[%clk 0:00:14.4]} 35... g5 {[%clk
0:00:42.7]} 36. Rh1 {[%clk 0:00:14.5]} 36... f4+ {[%clk 0:00:43.5]} 37. Kf2
{[%clk 0:00:15.2]} 37... g4 {[%clk 0:00:36.3]} 38. fxg4 {[%clk 0:00:13.8]} 38...
Qd5 {[%clk 0:00:35.8]} 39. Qxd5 {[%clk 0:00:14.3]} 39... Bxd5 {[%clk 0:00:37.1]}
40. Rh8 {[%clk 0:00:15.2]} 40... Be4 {[%clk 0:00:32.7]} 41. Re8 {[%clk
0:00:13.8]} 41... Kc6 {[%clk 0:00:33.2]} 42. Rxe6 {[%clk 0:00:14.8]} 42... Kd5
{[%clk 0:00:33.5]} 43. Rf6 {[%clk 0:00:15.8]} 43... a5 {[%clk 0:00:32]} 44. Rxf4
{[%clk 0:00:16.8]} 44... b4 {[%clk 0:00:31]} 45. cxb4 {[%clk 0:00:17.5]} 45...
axb4 {[%clk 0:00:32.1]} 46. Bxb4 {[%clk 0:00:16.5]} 46... Kxe5 {[%clk 0:00:33]}
47. Rf8 {[%clk 0:00:17.6]} 47... Rb7 {[%clk 0:00:31.7]} 48. Bc3+ {[%clk
0:00:17.7]} 48... Kd6 {[%clk 0:00:30.9]} 49. g5 {[%clk 0:00:18.8]} 49... Rb3
{[%clk 0:00:30.7]} 50. Bf6 {[%clk 0:00:19.5]} 50... Ra3 {[%clk 0:00:23.7]} 51.
Re8 {[%clk 0:00:19.6]} 51... Kd5 {[%clk 0:00:23.9]} 52. Bc4+ {[%clk 0:00:17.8]}
52... Kxc4 {[%clk 0:00:22.6]} 53. Rxe4+ {[%clk 0:00:18.4]} 53... Kd5 {[%clk
0:00:24.5]} 54. Re3 {[%clk 0:00:19]} 54... Ra2+ {[%clk 0:00:24.5]} 55. Kf3
{[%clk 0:00:20.1]} 55... Ra6 {[%clk 0:00:25.6]} 56. Kf4 {[%clk 0:00:20.6]} 56...
Ra4+ {[%clk 0:00:26.3]} 57. Kf5 {[%clk 0:00:21.7]} 57... Ra2 {[%clk 0:00:28.2]}
58. g4 {[%clk 0:00:21.5]} 58... Rf2+ {[%clk 0:00:29.5]} 59. Kg6 {[%clk
0:00:22.8]} 59... Rg2 {[%clk 0:00:30.4]} 60. Re5+ {[%clk 0:00:22.3]} 60... Kd6
{[%clk 0:00:30.7]} 61. Re4 {[%clk 0:00:22.4]} 61... Rh2 {[%clk 0:00:31]} 62. Kf7
{[%clk 0:00:23.2]} 62... Rh7+ {[%clk 0:00:29.6]} 63. Bg7 {[%clk 0:00:23.2]}
63... Kd5 {[%clk 0:00:28.6]} 64. Rd4+ {[%clk 0:00:23.8]} 64... Kc5 {[%clk
0:00:28.8]} 65. g6 {[%clk 0:00:25.3]} 65... Rh1 {[%clk 0:00:26.3]} 66. Rf4
{[%clk 0:00:25.9]} 66... Kd6 {[%clk 0:00:26.8]} 67. Bf8+ {[%clk 0:00:27.3]}
67... Kd7 {[%clk 0:00:25.9]} 68. g7 {[%clk 0:00:28.2]} 68... Rh7 {[%clk
0:00:26]} 69. Kg6 {[%clk 0:00:28.1]} 1-0

[Event "*** Titled Tuesday Blitz"]
[Site "Chess.com"]
[Date "2018.08.07"]
[Round "5"]
[White "ShadowJolteon"]
[Black "nOcHeaTiNgKiD"]
[Result "1/2-1/2"]
[WhiteElo "2214"]
[BlackElo "2390"]
[TimeControl "180+2"]
[EndTime "14:06:37 PDT"]
[Termination "Game drawn by agreement"]

1. d4 {[%clk 0:03:01.9]} 1... Nf6 {[%clk 0:03:00.6]} 2. c4 {[%clk 0:03:02.1]}
2... e6 {[%clk 0:03:01.6]} 3. g3 {[%clk 0:03:02.6]} 3... d5 {[%clk 0:03:00.6]}
4. Nf3 {[%clk 0:03:03.6]} 4... Bb4+ {[%clk 0:03:00.9]} 5. Bd2 {[%clk 0:03:04.5]}
5... Bd6 {[%clk 0:03:01.9]} 6. Bg2 {[%clk 0:03:05.6]} 6... O-O {[%clk
0:03:01.9]} 7. Bg5 {[%clk 0:03:05.2]} 7... Be7 {[%clk 0:02:59.1]} 8. Nbd2 {[%clk
0:03:04.1]} 8... Nbd7 {[%clk 0:02:58.1]} 9. O-O {[%clk 0:03:04.6]} 9... h6
{[%clk 0:02:54.1]} 10. Bxf6 {[%clk 0:03:05.5]} 10... Nxf6 {[%clk 0:02:54.9]} 11.
Qc2 {[%clk 0:03:07.4]} 11... c6 {[%clk 0:02:43]} 12. e4 {[%clk 0:03:05.6]} 12...
b6 {[%clk 0:02:38.8]} 13. Ne5 {[%clk 0:03:04.7]} 13... Bb7 {[%clk 0:02:37.9]}
14. Rac1 {[%clk 0:02:49.9]} 14... Rc8 {[%clk 0:02:35.3]} 15. Rfd1 {[%clk
0:02:47.7]} 15... c5 {[%clk 0:02:23.6]} 16. exd5 {[%clk 0:02:48.7]} 16... exd5
{[%clk 0:02:23.6]} 17. Qd3 {[%clk 0:02:36.3]} 17... dxc4 {[%clk 0:02:21]} 18.
Ndxc4 {[%clk 0:02:37]} 18... Bxg2 {[%clk 0:02:21.6]} 19. Kxg2 {[%clk 0:02:37.6]}
19... Qd5+ {[%clk 0:02:16.5]} 20. Qf3 {[%clk 0:02:36.2]} 20... Rfd8 {[%clk
0:02:08.1]} 21. dxc5 {[%clk 0:02:34.1]} 21... Qxf3+ {[%clk 0:02:03.1]} 22. Kxf3
{[%clk 0:02:32.3]} 22... Bxc5 {[%clk 0:02:03.3]} 23. a3 {[%clk 0:02:15.1]} 23...
Kf8 {[%clk 0:01:48.2]} 24. b4 {[%clk 0:02:14]} 24... Bd4 {[%clk 0:01:46.9]} 25.
b5 {[%clk 0:02:01.5]} 25... Bxe5 {[%clk 0:01:39.4]} 26. Nxe5 {[%clk 0:02:01.1]}
26... Rxc1 {[%clk 0:01:02.4]} 27. Rxc1 {[%clk 0:02:01.4]} 27... Rd5 {[%clk
0:00:59.9]} 28. Rc8+ {[%clk 0:01:56.8]} 28... Ke7 {[%clk 0:00:56.3]} 29. Nc6+
{[%clk 0:01:57.4]} 29... Kd7 {[%clk 0:00:53.3]} 30. Rd8+ {[%clk 0:01:41]} 30...
Kc7 {[%clk 0:00:53.7]} 31. Rf8 {[%clk 0:01:06.5]} 31... Rxb5 {[%clk 0:00:47.8]}
32. Nd4 {[%clk 0:01:01.2]} 32... Ra5 {[%clk 0:00:42.6]} 33. Rxf7+ {[%clk
0:01:00.4]} 33... Kd6 {[%clk 0:00:42.2]} 34. Rxg7 {[%clk 0:00:45.5]} 34... Rxa3+
{[%clk 0:00:42.4]} 35. Kg2 {[%clk 0:00:45.9]} 35... Ke5 {[%clk 0:00:31.2]} 36.
Nc6+ {[%clk 0:00:42.9]} 36... Kf5 {[%clk 0:00:30.9]} 37. Nxa7 {[%clk 0:00:40.7]}
37... Ra2 {[%clk 0:00:27.3]} 38. Kf3 {[%clk 0:00:36.2]} 38... Ra3+ {[%clk
0:00:27.3]} 39. Kg2 {[%clk 0:00:36.9]} 39... Ra2 {[%clk 0:00:28.6]} 40. Nc8
{[%clk 0:00:21.5]} 40... Ne4 {[%clk 0:00:26.9]} 41. Rf7+ {[%clk 0:00:22.5]}
41... Ke5 {[%clk 0:00:24.3]} 42. Nxb6 {[%clk 0:00:22.2]} 42... h5 {[%clk
0:00:23.8]} 43. Nc4+ {[%clk 0:00:22.5]} 43... Ke6 {[%clk 0:00:24.2]} 44. Rf4
{[%clk 0:00:22.9]} 44... Kd5 {[%clk 0:00:25.3]} 45. Ne3+ {[%clk 0:00:23.8]}
45... Ke5 {[%clk 0:00:25.7]} 46. Rf5+ {[%clk 0:00:25]} 46... Ke6 {[%clk
0:00:26.9]} 47. h4 {[%clk 0:00:25.9]} 47... Re2 {[%clk 0:00:24.3]} 48. Rf4
{[%clk 0:00:26.8]} 48... Ke5 {[%clk 0:00:24.3]} 49. Nc4+ {[%clk 0:00:22.9]}
49... Kd4 {[%clk 0:00:23.8]} 50. Ne3 {[%clk 0:00:22.8]} 50... Ke5 {[%clk
0:00:24.9]} 51. Nf5 {[%clk 0:00:22.9]} 51... Nxf2 {[%clk 0:00:16.1]} 52. Rxf2
{[%clk 0:00:15.8]} 52... Rxf2+ {[%clk 0:00:17.2]} 53. Kxf2 {[%clk 0:00:17.7]}
53... Kxf5 {[%clk 0:00:18.6]} 54. Kf3 {[%clk 0:00:19]} 54... Ke5 {[%clk
0:00:18.3]} 55. Ke3 {[%clk 0:00:17.4]} 55... Kf5 {[%clk 0:00:18.7]} 56. Kf3
{[%clk 0:00:18.8]} 56... Ke5 {[%clk 0:00:19.8]} 57. Ke3 {[%clk 0:00:07.7]} 57...
Kf5 {[%clk 0:00:20.1]} 58. Kf2 {[%clk 0:00:09]} 58... Kg4 {[%clk 0:00:17.4]} 59.
Kg2 {[%clk 0:00:10]} 59... Kf5 {[%clk 0:00:18.3]} 60. Kf3 {[%clk 0:00:11.9]}
60... Ke5 {[%clk 0:00:18.9]} 61. g4 {[%clk 0:00:10]} 61... hxg4+ {[%clk
0:00:19.8]} 62. Kxg4 {[%clk 0:00:11.9]} 62... Kf6 {[%clk 0:00:21.3]} 63. Kh5
{[%clk 0:00:11.9]} 63... Kg7 {[%clk 0:00:22.5]} 64. Kg5 {[%clk 0:00:13.2]} 64...
Kh8 {[%clk 0:00:23.9]} 65. h5 {[%clk 0:00:14.8]} 65... Kg8 {[%clk 0:00:25.4]}
66. Kg6 {[%clk 0:00:15.8]} 66... Kh8 {[%clk 0:00:27.3]} 67. h6 {[%clk
0:00:16.3]} 67... Kg8 {[%clk 0:00:28.7]} 68. Kf6 {[%clk 0:00:17.8]} 68... Kh8
{[%clk 0:00:30.6]} 69. Kg5 {[%clk 0:00:19.7]} 69... Kg8 {[%clk 0:00:31.8]} 70.
Kg6 {[%clk 0:00:21.6]} 70... Kh8 {[%clk 0:00:33.7]} 71. Kf7 {[%clk 0:00:22.5]}
71... Kh7 {[%clk 0:00:34.9]} 1/2-1/2

[Event "*** Titled Tuesday Blitz"]
[Site "Chess.com"]
[Date "2018.08.07"]
[Round "5"]
[White "KRASAVCHIK2002"]
[Black "CookiesAndIceCream"]
[Result "1-0"]
[WhiteElo "2206"]
[BlackElo "2252"]
[TimeControl "180+2"]
[EndTime "14:06:57 PDT"]
[Termination "KRASAVCHIK2002 won by resignation"]

1. e4 {[%clk 0:02:59.8]} 1... e5 {[%clk 0:03:01.4]} 2. Nf3 {[%clk 0:03:00.6]}
2... Nc6 {[%clk 0:03:02.8]} 3. Bb5 {[%clk 0:03:01.4]} 3... g6 {[%clk 0:03:02.4]}
4. c3 {[%clk 0:03:00.3]} 4... Bg7 {[%clk 0:03:03.8]} 5. d4 {[%clk 0:03:00.5]}
5... exd4 {[%clk 0:03:05.7]} 6. cxd4 {[%clk 0:03:01.1]} 6... a6 {[%clk
0:03:07.6]} 7. Ba4 {[%clk 0:03:01.7]} 7... b5 {[%clk 0:03:09.1]} 8. Bb3 {[%clk
0:03:02.1]} 8... Nge7 {[%clk 0:03:09.5]} 9. Nc3 {[%clk 0:02:59.8]} 9... Na5
{[%clk 0:03:08.2]} 10. Bc2 {[%clk 0:03:00]} 10... d6 {[%clk 0:03:09.1]} 11. h3
{[%clk 0:02:59.7]} 11... O-O {[%clk 0:03:09.9]} 12. O-O {[%clk 0:03:00]} 12...
Bb7 {[%clk 0:03:10.9]} 13. Bf4 {[%clk 0:02:48.9]} 13... Qd7 {[%clk 0:03:11.3]}
14. Qc1 {[%clk 0:02:38.1]} 14... f5 {[%clk 0:02:52.1]} 15. Bh6 {[%clk 0:02:32]}
15... fxe4 {[%clk 0:02:52.8]} 16. Bxe4 {[%clk 0:02:31.7]} 16... Bxe4 {[%clk
0:02:41.3]} 17. Nxe4 {[%clk 0:02:31.5]} 17... Nd5 {[%clk 0:02:41.8]} 18. Bxg7
{[%clk 0:02:30.5]} 18... Kxg7 {[%clk 0:02:42.1]} 19. Nh2 {[%clk 0:01:35.6]}
19... Rae8 {[%clk 0:02:38.5]} 20. Nc3 {[%clk 0:01:35.5]} 20... Nf4 {[%clk
0:02:38.1]} 21. Qd2 {[%clk 0:01:06]} 21... Nc4 {[%clk 0:02:38]} 22. Qc2 {[%clk
0:01:02.5]} 22... Qc6 {[%clk 0:01:39.9]} 23. d5 {[%clk 0:00:46.1]} 23... Nxd5
{[%clk 0:01:40.7]} 24. Nxd5 {[%clk 0:00:46.4]} 24... Qxd5 {[%clk 0:01:42]} 25.
b3 {[%clk 0:00:46.8]} 25... Qd2 {[%clk 0:01:27.9]} 26. Rac1 {[%clk 0:00:32.6]}
26... Re2 {[%clk 0:01:23.9]} 27. Qxd2 {[%clk 0:00:05.4]} 27... Nxd2 {[%clk
0:01:25.8]} 28. Rfe1 {[%clk 0:00:03.4]} 28... Rxe1+ {[%clk 0:01:04.9]} 29. Rxe1
{[%clk 0:00:03.4]} 29... Kf7 {[%clk 0:00:55.6]} 30. Re2 {[%clk 0:00:04.2]} 30...
Nb1 {[%clk 0:00:55.9]} 31. Rc2 {[%clk 0:00:05.3]} 31... c5 {[%clk 0:00:56.2]}
32. Ng4 {[%clk 0:00:06]} 32... Ke6 {[%clk 0:00:55]} 33. Ne3 {[%clk 0:00:05.9]}
33... Na3 {[%clk 0:00:55.1]} 34. Rd2 {[%clk 0:00:06.9]} 34... Rf4 {[%clk
0:00:54]} 35. Re2 {[%clk 0:00:05.8]} 35... Kd7 {[%clk 0:00:53.3]} 36. Nd5 {[%clk
0:00:06.7]} 36... Rf7 {[%clk 0:00:54.7]} 37. g4 {[%clk 0:00:05.6]} 37... c4
{[%clk 0:00:55.7]} 38. bxc4 {[%clk 0:00:06.3]} 38... bxc4 {[%clk 0:00:54.3]} 39.
Re3 {[%clk 0:00:07.4]} 39... Nb5 {[%clk 0:00:55.1]} 40. a4 {[%clk 0:00:07.4]}
40... Nd4 {[%clk 0:00:49.7]} 41. Nb6+ {[%clk 0:00:08.5]} 41... Kc6 {[%clk
0:00:46.6]} 42. Nxc4 {[%clk 0:00:10.4]} 42... Kc5 {[%clk 0:00:44.5]} 43. Nd2
{[%clk 0:00:10.4]} 43... Kb4 {[%clk 0:00:39.5]} 44. Ne4 {[%clk 0:00:05.9]} 44...
d5 {[%clk 0:00:36.1]} 45. Nd6 {[%clk 0:00:05.7]} 45... Rd7 {[%clk 0:00:35.9]}
46. Ne8 {[%clk 0:00:06.9]} 46... Kxa4 {[%clk 0:00:35]} 47. Nf6 {[%clk 0:00:08]}
47... Rd6 {[%clk 0:00:35.6]} 48. Nxh7 {[%clk 0:00:09.1]} 48... Ne6 {[%clk
0:00:32.2]} 49. Nf6 {[%clk 0:00:09.3]} 49... d4 {[%clk 0:00:33.5]} 50. Rd3
{[%clk 0:00:10.4]} 50... Nf4 {[%clk 0:00:35]} 51. Rd1 {[%clk 0:00:10.8]} 51...
d3 {[%clk 0:00:35.8]} 52. Ne4 {[%clk 0:00:11.6]} 52... Kb3 {[%clk 0:00:34.5]}
53. Nxd6 {[%clk 0:00:12.2]} 53... Kc2 {[%clk 0:00:35]} 54. Rf1 {[%clk 0:00:09]}
54... d2 {[%clk 0:00:36]} 55. Nc4 {[%clk 0:00:08.6]} 55... a5 {[%clk 0:00:20.9]}
56. Ne3+ {[%clk 0:00:09.2]} 56... Kd3 {[%clk 0:00:17]} 57. Ra1 {[%clk
0:00:07.2]} 57... Ke2 {[%clk 0:00:14.7]} 58. Nf1 {[%clk 0:00:05.7]} 58... Nxh3+
{[%clk 0:00:15.2]} 59. Kg2 {[%clk 0:00:07]} 59... Nxf2 {[%clk 0:00:16.3]} 60.
Ra2 {[%clk 0:00:07.4]} 60... Ne4 {[%clk 0:00:17.1]} 61. Nxd2 {[%clk 0:00:08.4]}
61... Nxd2 {[%clk 0:00:18]} 62. Rxa5 {[%clk 0:00:10.2]} 62... Nf3 {[%clk
0:00:10.5]} 63. Ra2+ {[%clk 0:00:10.2]} 63... Ke3 {[%clk 0:00:11.7]} 64. Ra3+
{[%clk 0:00:10.7]} 1-0